Cogmind - Beta 12 @@@ ROGUE MODE // 2023.05.09 @ 22:03:28 Player: MoonDog Result: Destroyed by as-96077 with Assembled Rifle Performance ------------- Evolutions (1) 500 Regions Visited (6) 1200 Robots Destroyed (36) 180 Value Destroyed (482) 482 Prototype IDs (2) 40 Alien Tech Used (0) 0 Bonus (538) 538 TOTAL SCORE: 2940 Bonus ------- Met Imprinter 300 Was Imprinted 300 Friendly Fire -62 Cogmind --------- Core Integrity 0/400 Matter 245/300 Energy 59/100 System Corruption 1% Temperature Cool (0) Movement Core (100) Ox1 Location -7/Deep Caves Parts ------- > --- POWER (1) -------- (None) > --- PROPULSION (2) --- (None) > --- UTILITY (4) ------ Weight Redist. System Authchip [Processor] > --- WEAPON (2) ------- Makeshift Hammer CR-A16's Pointy Stick > --- INVENTORY (5) ---- Structural Scanner Visual Processing Unit Improved Targeting Computer EM Shotgun Shotgun Peak State ------------ > --- POWER ------------ Light Ion Engine > --- PROPULSION ------- Flight Unit Flight Unit > --- UTILITY ---------- Small Storage Unit Weight Redist. System Hacking Suite Authchip [Processor] > --- WEAPON ----------- Makeshift Hammer CR-A16's Pointy Stick > --- INVENTORY -------- Weight Redist. System Structural Scanner Visual Processing Unit Improved Targeting Computer Authchip [Weapon] EM Shotgun Shotgun Improved Light Cannon [Rating: 22] Favorites ----------- Power Light Ion Engine Engine Light Ion Engine Propulsion Aluminum Leg Leg Aluminum Leg Flight Unit Flight Unit Utility Hacking Suite Device Weight Redist. System Storage Small Storage Unit Processor Visual Processing Unit Hackware Hacking Suite Weapon Shotgun Energy Gun EM Shotgun Ballistic Gun Shotgun Ballistic Cannon Improved Light Cannon Launcher Grenade Launcher Impact Weapon Makeshift Hammer Piercing Weapon CR-A16's Pointy Stick Build | -11 -10 -10 -9 -9 -7 -7 ------- Run | Jun Mat Min Mat Min Zio Dee Slots Evolved 2 | . . . 2 . . . Power . | . . . . . . . Propulsion . | . . . . . . . Utility 2 | . . . 2 . . . Weapon . | . . . . . . . Parts Attached 36 | 4 7 2 15 4 3 1 Power 4 | . . . 3 1 . . Engine 4 | . . . 3 1 . . Core . | . . . . . . . Reactor . | . . . . . . . Propulsion 9 | 3 . 1 3 2 . . Treads . | . . . . . . . Leg 3 | 3 . . . . . . Wheel . | . . . . . . . Hover . | . . . . . . . Flight 6 | . . 1 3 2 . . Utility 9 | . 2 . 6 . . 1 Device 3 | . . . 2 . . 1 Storage 2 | . . . 2 . . . Processor 2 | . 1 . 1 . . . Hackware 2 | . 1 . 1 . . . Protection . | . . . . . . . Artifact . | . . . . . . . Weapon 14 | 1 5 1 3 1 3 . Energy Gun 5 | 1 3 1 . . . . Energy Cannon . | . . . . . . . Ballistic Gun 4 | . . . 3 1 . . Ballistic Cannon 1 | . . . . . 1 . Launcher 2 | . 2 . . . . . Special Weapon . | . . . . . . . Impact Weapon 1 | . . . . . 1 . Slashing Weapon . | . . . . . . . Piercing Weapon 1 | . . . . . 1 . Special Melee Weapon . | . . . . . . . Unidentified Prototypes . | . . . . . . . Parts Lost 9 | . . . 3 1 . 5 Power 1 | . . . . . . 1 Propulsion 5 | . . . 2 1 . 2 Utility 3 | . . . 1 . . 2 Weapon . | . . . . . . . Highest Loss Streak 4 | . . . 2 1 . 4 To Critical Strikes . | . . . . . . . Average Slot Usage (%) 72 | . 67 71 70 75 93 59 Engine 3 | . . . 7 4 11 1 Leg 11 | . 28 14 1 . . . Flight 10 | . . 14 13 15 22 3 Device 4 | . . . 4 11 11 18 Storage 3 | . . . 5 11 11 1 Processor 9 | . 13 14 9 . . . Hackware 15 | . 10 14 18 22 22 12 Energy Gun 4 | . 3 14 1 . . . Ballistic Gun 3 | . . . 8 11 6 . Launcher 3 | . 10 . . . . . Impact Weapon 1 | . . . . . 4 11 Piercing Weapon 1 | . . . . . 4 11 Naked Turns . | . . . . . . . Heaviest Build 14 | 2 6 3 9 11 14 14 Greatest Support 14 | 3 3 4 10 14 14 14 Greatest Overweight (x) 1 | . 1 . 1 . . 1 Average Overweight (x) . | . . . . . . . Largest Inventory Capacity 8 | 5 5 5 8 8 8 8 Average Capacity 5 | 5 5 5 5 8 8 5 Most Carried 8 | 2 5 5 8 8 8 8 Average Carried 5 | . 3 4 4 7 7 5 Final Capacity 8 | 5 5 5 8 8 8 5 Final Carried 8 | 2 5 5 8 8 8 5 Class Distribution -------------------- 72% | Mutant 27% | Scavenger-Mutant Dominant Class ---------------- Mutant | -10/Materials Mutant | -10/Mines Mutant | -9/Materials Mutant | -9/Mines Scavenger-Mutant | -7/Zion Mutant | -7/Deep Caves Resources | -11 -10 -10 -9 -9 -7 -7 ----------- Run | Jun Mat Min Mat Min Zio Dee Matter Collected 864 | 240 73 157 237 118 39 . Remotely . | . . . . . . . Salvage Created 855 | 93 108 131 405 118 . . Parts 63 | 1 16 10 26 10 . . Haulers Intercepted 5 | . 1 . 4 . . . Recyclers Shooed . | . . . . . . . Parts Field Recycled . | . . . . . . . Retrieved Matter . | . . . . . . . Parts Self-Destructed . | . . . . . . . Prevented . | . . . . . . . Kills | -11 -10 -10 -9 -9 -7 -7 ------- Run | Jun Mat Min Mat Min Zio Dee Combat Hostiles Destroyed 21 | . 6 4 7 4 . . Guns 14 | . . 3 7 4 . . AOE 7 | . 6 1 . . . . Classes Destroyed 12 | 1 4 1 3 3 . . Worker 1 | . . . . 1 . . Builder 1 | . . . . 1 . . Tunneler 1 | . . . . 1 . . Hauler 5 | . 1 . 4 . . . Recycler 1 | 1 . . . . . . Mechanic 1 | . . . 1 . . . Operator 2 | . 1 . 1 . . . Watcher 3 | . 2 . 1 . . . Swarmer 16 | . 6 2 4 4 . . Grunt 3 | . . 2 1 . . . Brawler 1 | . . . 1 . . . Sentry 1 | . . . 1 . . . Best Kill Streak 7 | 1 4 2 4 7 . . Combat Bots Only 4 | . 3 2 4 4 . . Max Kills in Single Turn 2 | 1 2 2 1 1 . . Gunslinging . | . . . . . . . Exploded 2 | . 2 1 . . . . Melee . | . . . . . . . Uniques/NPCs Destroyed . | . . . . . . . Combat | -11 -10 -10 -9 -9 -7 -7 -------- Run | Jun Mat Min Mat Min Zio Dee Damage Taken 1000 | . 43 99 256 108 . 494 Core 457 | . 18 28 67 81 . 263 Absorbed by Shields . | . . . . . . . Core Remaining (%) 90 | 100 . 81 . . . . Volleys Fired 102 | 5 17 7 55 17 1 . Largest 2 | 1 1 1 2 1 1 . Hottest 46 | 40 40 45 46 23 39 . Shots Fired 104 | 5 17 7 57 17 1 . Gun 90 | 5 4 7 57 17 . . Cannon 1 | . . . . . 1 . Launcher 13 | . 13 . . . . . Special . | . . . . . . . Kinetic 75 | . . . 57 17 1 . Thermal . | . . . . . . . Explosive 13 | . 13 . . . . . Electromagnetic 16 | 5 4 7 . . . . Robot Hit Streak 14 | 1 4 7 6 14 . . Robot Miss Streak 5 | 1 1 2 5 5 . . Penetration Max . | . . . . . . . Secondary Targets . | . . . . . . . Shots Hit Robots 71 | 3 4 6 45 13 . . Core Hits 55 | 2 13 8 25 7 . . Critical Kills . | . . . . . . . Critical Parts Destroyed 2 | . . . 2 . . . Critical Strikes 2 | . . . 2 . . . Destroy 2 | . . . 2 . . . Melee Attacks 2 | . . . . . . 2 Impact . | . . . . . . . Slashing . | . . . . . . . Piercing 2 | . . . . . . 2 Sneak Attacks . | . . . . . . . Combat Hostiles . | . . . . . . . Follow-up Attacks . | . . . . . . . Damage Inflicted 1627 | 41 544 169 680 193 . . Guns 1065 | 41 54 97 680 193 . . Cannons . | . . . . . . . Explosions 562 | . 490 72 . . . . Melee . | . . . . . . . Ramming . | . . . . . . . Kinetic 873 | . . . 680 193 . . Thermal 99 | . 27 72 . . . . Explosive 463 | . 463 . . . . . Electromagnetic 192 | 41 54 97 . . . . Impact . | . . . . . . . Slashing . | . . . . . . . Piercing . | . . . . . . . Highest Corruption 6 | . . . 6 6 6 1 Average Corruption 5 | . . . 5 6 6 1 Corruption Purged . | . . . . . . . Corruption Blocked . | . . . . . . . Effects 14 | . . . 8 4 2 . Message Errors 4 | . . . 3 . 1 . Matter Fused 2 | . . . 1 1 . . Heat Flow Errors 1 | . . . 1 . . . Energy Discharges 2 | . . . . 1 1 . Parts Fused 2 | . . . 1 1 . . Data Loss (minor) 1 | . . . 1 . . . Data Loss (major) 2 | . . . 1 1 . . Overload Shots . | . . . . . . . Overflow Damage . | . . . . . . . Projectiles . | . . . . . . . Explosions . | . . . . . . . Melee . | . . . . . . . Knockbacks . | . . . . . . . Impact . | . . . . . . . Kinetic . | . . . . . . . Secondary . | . . . . . . . Self-Inflicted Damage 26 | . 5 21 . . . . Shots 2 | . 1 1 . . . . Rammed . | . . . . . . . Targets Rammed . | . . . . . . . Kicked . | . . . . . . . Crushed . | . . . . . . . Highest Temperature 227 | 15 15 18 227 . . . Average Temperature 44 | 10 7 9 114 . . . Received Heat Transfer 138 | . . 33 51 . . 54 Siege Activations . | . . . . . . . Robots Corrupted . | . . . . . . . Combat Hostiles . | . . . . . . . Parts Fried . | . . . . . . . Impact Corruptions . | . . . . . . . Robots Melted . | . . . . . . . Combat Hostiles . | . . . . . . . Parts Melted . | . . . . . . . Heat Transferred 150 | . 50 100 . . . . Parts Sabotaged . | . . . . . . . Parts Stolen . | . . . . . . . Parts Stripped . | . . . . . . . Power Chain Reactions 2 | . 1 1 . . . . Missiles Intercepted . | . . . . . . . Alert | -11 -10 -10 -9 -9 -7 -7 ------- Run | Jun Mat Min Mat Min Zio Dee Peak Influence 342 | 5 342 179 325 152 . . Initial 70 | . 3 70 69 57 . . Average 178 | 1 238 133 182 102 . . Maximum Alert Level 1 | . 1 . 1 . . . Low Security (%) 67 | 100 45 100 54 100 . . Level 1 32 | . 54 . 45 . . . Level 2 . | . . . . . . . Level 3 . | . . . . . . . Level 4 . | . . . . . . . Level 5 . | . . . . . . . High Security . | . . . . . . . Max Security . | . . . . . . . Squads Dispatched . | . . . . . . . Investigation . | . . . . . . . Extermination . | . . . . . . . Reinforcement . | . . . . . . . Assault . | . . . . . . . Garrison . | . . . . . . . Intercept . | . . . . . . . Searches Triggered . | . . . . . . . Construction Impeded . | . . . . . . . Haulers Reinforced . | . . . . . . . Active Scanning Responses . | . . . . . . . Cargo Convoy Interrupts . | . . . . . . . Stealth | -11 -10 -10 -9 -9 -7 -7 --------- Run | Jun Mat Min Mat Min Zio Dee Distress Signals 3 | . 1 . 2 . . . Communications Jammed . | . . . . . . . Distress Signals . | . . . . . . . Times Spotted 39 | . 8 5 18 4 . 4 Peak Tracking Total 5 | . 4 3 5 4 . 4 Tactical Retreats . | . . . . . . . Traps | -11 -10 -10 -9 -9 -7 -7 ------- Run | Jun Mat Min Mat Min Zio Dee Traps Triggered . | . . . . . . . Indirectly . | . . . . . . . Trap Hack Attempts . | . . . . . . . Triggered . | . . . . . . . Disarmed 3 | . . . 3 . . . Reprogrammed . | . . . . . . . Reused . | . . . . . . . Traps Extracted . | . . . . . . . Installed . | . . . . . . . Triggered . | . . . . . . . Machines | -11 -10 -10 -9 -9 -7 -7 ---------- Run | Jun Mat Min Mat Min Zio Dee Machines Disabled 2 | . 2 . . . . . Max in Single Turn 1 | . 1 . . . . . Machines Repaired . | . . . . . . . Machines Sabotaged . | . . . . . . . Overloaded Fab Kills . | . . . . . . . Hacking | -11 -10 -10 -9 -9 -7 -7 --------- Run | Jun Mat Min Mat Min Zio Dee Machines Accessed 15 | . 8 . 7 . . . Terminals 15 | . 8 . 7 . . . Fabricators . | . . . . . . . Repair Stations . | . . . . . . . Recycling Units . | . . . . . . . Scanalyzers . | . . . . . . . Garrison Access . | . . . . . . . Total Hacks 47 | . 21 . 26 . . . Successful 35 | . 15 . 20 . . . Failed 12 | . 6 . 6 . . . Catastrophic 1 | . . . 1 . . . Database Lockouts . | . . . . . . . Manual 37 | . 15 . 17 . 5 . Terminals 47 | . 21 . 26 . . . Fabricators . | . . . . . . . Repair Stations . | . . . . . . . Recycling Units . | . . . . . . . Scanalyzers . | . . . . . . . Garrison Access . | . . . . . . . Terminal Hacks 15 | . 7 . 8 . . . Record 1 | . . . 1 . . . Part Schematic 1 | . 1 . . . . . Robot Analysis 2 | . 1 . 1 . . . Prototype ID Bank 1 | . . . 1 . . . Branch Access Points 2 | . 1 . 1 . . . Terminal Index 2 | . 1 . 1 . . . Locate Traps 2 | . 1 . 1 . . . Disarm Traps 1 | . . . 1 . . . Hauler Manifests 1 | . . . 1 . . . Registered Components 1 | . 1 . . . . . Registered Prototypes 1 | . 1 . . . . . Fabricator Hacks . | . . . . . . . Repair Station Hacks . | . . . . . . . Recycling Unit Hacks . | . . . . . . . Scanalyzer . | . . . . . . . Garrison Access Hacks . | . . . . . . . Unauthorized Hacks 20 | . 8 . 12 . . . Terminals 20 | . 8 . 12 . . . Track 5 | . 1 . 4 . . . Assimilate 3 | . 2 . 1 . . . Botnet 10 | . 4 . 6 . . . Detonate 1 | . . . 1 . . . Operators 1 | . 1 . . . . . Fabricators . | . . . . . . . Repair Stations . | . . . . . . . Recycling Units . | . . . . . . . Scanalyzers . | . . . . . . . Garrison Access . | . . . . . . . Data Cores Recovered 1 | . 1 . . . . . Used 1 | . 1 . . . . . Hacking Detections 13 | . 6 . 7 . . . Full Trace Events 1 | . . . 1 . . . Feedback Events . | . . . . . . . Feedback Blocked . | . . . . . . . Robot Schematics Acquired 4 | . . . . . 4 . Robots Built . | . . . . . . . Authchips . | . . . . . . . Time . | . . . . . . . Total Robot Build Rating . | . . . . . . . Part Schematics Acquired 16 | . 1 . . . 15 . Parts Built . | . . . . . . . Authchips . | . . . . . . . Time . | . . . . . . . Total Part Build Rating . | . . . . . . . Parts Repaired . | . . . . . . . Time . | . . . . . . . Parts Recycled . | . . . . . . . Recycled Matter . | . . . . . . . Retrieved Matter . | . . . . . . . Retrieved Components . | . . . . . . . Parts Scanalyzed . | . . . . . . . Part Schematics Acquired . | . . . . . . . Parts Damaged . | . . . . . . . Bothacking | -11 -10 -10 -9 -9 -7 -7 ------------ Run | Jun Mat Min Mat Min Zio Dee Used RIF Installer . | . . . . . . . Robots Hacked . | . . . . . . . Non-combat . | . . . . . . . Combat . | . . . . . . . Robot Hacks Applied . | . . . . . . . Relay Couplers Released . | . . . . . . . Fabnet Peak Effective % . | . . . . . . . Robots Rewired . | . . . . . . . Allies Hacked . | . . . . . . . Hacks Repelled . | . . . . . . . Allies | -11 -10 -10 -9 -9 -7 -7 -------- Run | Jun Mat Min Mat Min Zio Dee Total Allies 7 | . 1 1 1 . 4 . Largest Group 4 | . 1 2 2 . 4 . Highest-Rated Group 154 | . 10 41 20 . 154 . Highest-Rated Ally 41 | . 10 31 10 . 41 . Total Orders . | . . . . . . . Ally Attacks . | . . . . . . . Total Damage . | . . . . . . . Kills . | . . . . . . . Allies Corrupted 1 | . . . 1 . . . Allies Melted . | . . . . . . . Intel | -11 -10 -10 -9 -9 -7 -7 ------- Run | Jun Mat Min Mat Min Zio Dee Robot Analysis Total 2 | . 1 . 1 . . . Derelict Logs Recovered 3 | . . 1 . . 2 . Drone Launches . | . . . . . . . Drone Recoveries . | . . . . . . . Exploration | -11 -10 -10 -9 -9 -7 -7 ------------- Run | Jun Mat Min Mat Min Zio Dee Turns Passed 1902 | 40 579 371 430 175 235 72 Spaces Moved 2718 | 45 552 542 590 284 579 126 Core 705 | 45 552 5 . 4 . 99 Treads . | . . . . . . . Legs . | . . . . . . . Wheels . | . . . . . . . Hover . | . . . . . . . Flight 2013 | . . 537 590 280 579 27 Fastest Speed 34 | 50 50 50 34 37 37 37 Average Speed 44 | 50 50 50 42 38 37 50 Slowest Speed 120 | 50 100 50 120 50 37 100 Overloaded Moves . | . . . . . . . Propulsion Burnouts . | . . . . . . . Robots Hopped 18 | . . 4 8 6 . . Cave-ins Triggered . | . . . . . . . Exploration Rate (%) 51 | 3 71 93 45 59 70 22 Regions Visited 6 Branch Regions 4 Pre-discovered Areas 3 | . . 1 . . 2 . Known Exits Taken 2 | . 1 . 1 . . . Unknown Exits Taken 4 | 1 . 1 . 1 1 . Scrap Searched 4 | . . 1 . . 3 . Spaces Dug 22 | . 22 . . . . . Terrain Destroyed 86 | . 85 1 . . . . Melee . | . . . . . . . Projectile . | . . . . . . . AOE 86 | . 85 1 . . . . Terrain Rammed . | . . . . . . . Walls Destroyed . | . . . . . . . Machines Disabled . | . . . . . . . Actions | -11 -10 -10 -9 -9 -7 -7 --------- Run | Jun Mat Min Mat Min Zio Dee Total 3280 | 56 837 630 703 325 598 131 Wait 402 | . 250 81 32 25 14 . Move 2679 | 44 551 534 575 271 578 126 Hop 15 | . . 3 6 6 . . Pick Up 17 | 2 5 1 8 1 . . Fast Attach 19 | 3 4 1 6 3 2 . Attach 11 | 1 1 . 6 1 1 1 Detach 12 | 1 3 . 5 1 2 . Swap 6 | . 2 1 3 . . . Drop 15 | . 4 2 7 . . 2 Fire 102 | 5 17 7 55 17 1 . Melee 2 | . . . . . . 2 Ram . | . . . . . . . Kick . | . . . . . . . Crush . | . . . . . . . Escape Stasis . | . . . . . . . Rewire . | . . . . . . . Trap . | . . . . . . . Miscellaneous . | . . . . . . . Route ------- -11/Junkyard -10/Materials (discovered 4 exits: *Mat x3 / *Min) -10/Mines (discovered 2 exits: *Mat x2) -9/Materials (discovered 3 exits: *Mat x2 / *Min) -9/Mines -7/Zion (discovered 2 exits: [*Dee] / [*Pro]) -7/Deep Caves History --------- Turn | Location | Event 7 | -11/Junkyard | Discovered new exit (range 14) 41 | -11/Junkyard | Entered Materials 64 | -10/Materials | Identified exit to Mines 114 | -10/Materials | Discovered new exit (range 18) 268 | -10/Materials | Discovered new exit (range 16) 316 | -10/Materials | Build established: Mutant 434 | -10/Materials | Discovered new exit (range 10) 620 | -10/Materials | Entered Mines 620 | -10/Mines | Accompanied by 1 ally 624 | -10/Mines | Escorted by a lone wolf Derelict 644 | -10/Mines | Learned location of Storage (-8) 670 | -10/Mines | Assembled infested the area 802 | -10/Mines | Discovered new exit (range 6) 932 | -10/Mines | Found a hidden stash of uninstalled traps 974 | -10/Mines | Discovered new exit (range 13) 974 | -10/Mines | Learned 4 Materials zone layouts 991 | -10/Mines | Entered Materials 991 | -9/Materials | Accompanied by 1 ally 991 | -9/Materials | Evolved 2 slots: Utility x2 1152 | -9/Materials | Discovered new exit (range 18) 1285 | -9/Materials | Identified exit to Materials 1362 | -9/Materials | Identified exit to Mines 1402 | -9/Materials | Discovered exit to Materials (range 11) 1421 | -9/Materials | Entered Mines 1590 | -9/Mines | A Derelict revealed a hidden shortcut to a safe place 1596 | -9/Mines | Entered Zion 1633 | -7/Zion | Given A8's code to call for help 1638 | -7/Zion | Discovered new exit (range 12) 1640 | -7/Zion | Acquired unknown access codes intercepted by a Zionite 1665 | -7/Zion | System corruption cleaned by Quarantine Array 1668 | -7/Zion | Learned Factory emergency access door positions 1736 | -7/Zion | Found CR-A16's Pointy Stick 1754 | -7/Zion | Imprinted 1756 | -7/Zion | Declared Zion's savior 1810 | -7/Zion | Learned 4 Factory zone layouts 1814 | -7/Zion | Build established: Scavenger-Mutant 1824 | -7/Zion | Opened final containment barrier to the Deep Caves 1830 | -7/Zion | Discovered new exit (range 5) 1830 | -7/Zion | Saw the warning signs outside the Deep Caves entrance 1831 | -7/Zion | Entered Deep Caves 1880 | -7/Deep Caves | Lost 4 parts (1p2n1u) 1893 | -7/Deep Caves | Core integrity fell below 50% 1896 | -7/Deep Caves | Attacked by Z-Imprinter 1899 | -7/Deep Caves | Z-Facility disabled 1903 | -7/Deep Caves | Core integrity fell below 20% 1903 | -7/Deep Caves | Destroyed by as-96077 with Assembled Rifle Last Messages --------------- blame when the place goes to hell. Again. >>\\KMT3 Containment barrier disabled. Signature recorded so we know who to blame when the place goes to hell. Again. 01830_ EXIT=FOUND 01830_ The room is plastered with warning signs of various forms. LOCATION=UNKNOWN GOAL=ESCAPE 01840_ Hacking Suite destroyed. 01844_ Flight Unit destroyed. 01844_ System corrupted by crushing effect (+1). 01846_ Lgt. Ion Engine destroyed. 01847_ Dropped Authchip [Weapon]. 01848_ Dropped Sml. Storage Unit. 01849_ Flight Unit destroyed. 01883_ NEW_ZION: Z-Facility proximity alert. Z-Imprinter: GET AWAY FROM HERE! I've worked too hard for our future just to have you ruin everything! 01896_ Weight Redist. System destroyed. 01899_ Z-Facility disabled. Map ----- +----------------------------------------------------+ | | | | | | | | | | | | | | | | | | | | | | | | | | | | | | | | | | | | | ?????????????????????????????????????????????????? | | ????????????????###############??????????????????? | | ?????????????#### ##?????????????????? | | ????????????## #????###??????????? | | ???????????## ###### ##?????##### | | ????????# ## ## # #???### | | ????????# I ##### | | ????? a @ a | | ???? a | | ???? | | ???? | | ????? """"" """""" | | ????? """"" """""""" | | ?????? """""""""""""" | | ?????? ???"""""""""""" | | ??????? ????""""""""" | | ????????? ???????????????"" | | ????????????????????????""" | | ??????????????????????????" | | ??????????????????????????" | | ????????????????????????????? | | ??????????????????????????????? | | ???????????????????????????????????? | | ??????????????????????????????????????? | | ???????????????????????????????????????? | | ?????????????????????????????????????????? | | ???????????????????????????????????????????? | | ??????????????????????????????????????????????? ? | | ?????????????????????????????????????????????????? | | ?????????????????????????????????????????????????? | | ?????????????????????????????????????????????????? | | ?????????????????????????????????????????????????? | +----------------------------------------------------+ Best States ------------- Heat Dissipation 28 Energy Generation 10 Energy Capacity 125 Matter Stores 450 Matter Capacity 450 Sight Range 18 Terrain Scan Density 10 Additional Mass Support 6 Evasion (%) 63 Offensive Hacking 10 Authchip Count 2 Item Schematics ----------------- Flight Unit | -10/Materials | Hacked Imp. Plasma Cutter | -7/Zion | Archive 0b10 Decoder Chip [Skirmisher] | -7/Zion | Archive Imp. Salvage Targeting Computer | -7/Zion | Archive Power Maul | -7/Zion | Archive Lgt. Angular Momentum Engine | -7/Zion | Archive Imp. Core Shielding | -7/Zion | Archive Imp. Melee Analysis Suite | -7/Zion | Archive Imp. Weapon Cycler | -7/Zion | Archive Mak. Salvage Targeting Computer | -7/Zion | Archive Beamcaster | -7/Zion | Archive Mak. Armor Plating | -7/Zion | Archive Drone Bay | -7/Zion | Archive Gauss Cannon | -7/Zion | Archive Stasis Canceller | -7/Zion | Archive Hvy. Ion Cannon | -7/Zion | Archive Robot Schematics ------------------ Y-72 Warden | -7/Zion | Archive R-06 Scavenger | -7/Zion | Archive K-01 Serf | -7/Zion | Archive I-25 Savior | -7/Zion | Archive Fabricated ------------ Nothing Alien Tech Used ----------------- None Achievements -------------- None Challenges ------------ None Game ------ Seed InsulationNuclearPrototype Manual? 0 Play Time 00:49:03 Cumulative 128.6 hours Start 2023.05.09 @ 21:06:46 End 2023.05.09 @ 22:03:28 Sessions 2 Manual Loads 0 Difficulty Rogue Special Mode None Game No. 114 Rogue 114 Adventurer 0 Explorer 0 Win Type - Total 1 Types 1/0/0/0/0/0/0/0/0 Lore% 40 Gallery% 55 Achievement% 46 Wizard Run 0 Options --------- ASCII 0 Keyboard 0 Movement Numpad Keybinds 0 Fullscreen 2 Font 18/CogWide Map View 76x50 Tactical HUD 1 Map Filters NONE Filters NONE Steam 1 RUN: 1a7bf01c-d929-4e21-86ae-9510893464c3